bitfinex/quotes_SOLUSD_20211001
["timestamp","ask_amount","ask_price","bid_price","bid_amount"]
[1633085021455,25.69018434,148.87,148.69,2.16]
[1633085021653,2.55011231,148.85,148.7,2.16]
[1633085021853,2.4186687,148.8,148.66,2.1812976]
[1633085022055,24.48165891,148.79,148.66,2.16]
[1633085022252,0.02088,148.83,148.66,2.16]
[1633085022452,0.02088,148.83,148.67,34.10930725]
[1633085023054,0.02088,148.83,148.67,63.85094262]
[1633085023455,0.02088,148.87,148.68,35.50520591]
[1633085023660,0.02088,148.87,148.69,2.16]
[1633085023856,76.5171,148.97,148.7,1.69882181]
[1633085023857,0.02088,148.96,148.7,1.69882181]
[1633085024058,0.02088,148.96,148.73,1.67372706]
[1633085024261,29.07448263,148.94,148.75,2.53645207]
[1633085024457,2.16,149.01,148.76,3.81414337]
[1633085024458,0.02088,148.95,148.76,3.81414337]
[1633085024656,0.02088,148.99,148.76,31.71338408]
[1633085024855,0.02088,148.99,148.77,27.82231609]
[1633085025058,0.02088,148.99,148.8,2.44573717]
[1633085025258,0.09005594,149.03,148.81,2.1812976]
[1633085025457,219.61926102,148.99,148.82,0.0212976]
[1633085025660,219.61926102,148.99,148.83,2.16]
[1633085025661,2999.5,148.94,148.83,2.16]
[1633085025858,30.17842093,148.93,148.83,2.16]
[1633085026061,30.17842093,148.93,148.86,47.0]
[1633085026264,30.17842093,148.93,148.87,2.16]
[1633085027461,30.17842093,148.93,148.72,1.69280536]
[1633085027660,30.17842093,148.93,148.78,0.0212976]
[1633085027859,7.85212,148.92,148.79,2.16]
[1633085028060,2.40990524,148.89,148.77,0.02088]
[1633085028260,7.85212,148.92,148.78,2.16]
[1633085028460,2.47886902,148.88,148.74,2.16]
[1633085028659,7.85212,148.87,148.74,2.16]
[1633085028862,2.42958981,148.83,148.7,2.16]
[1633085029062,29.36570683,148.82,148.7,2.16]
[1633085029264,0.0212176,148.79,148.65,2.16]
[1633085029461,0.0212176,148.79,148.56,1.85754249]
[1633085029662,5.74299567,148.78,148.57,2.16]
[1633085029862,24.373772,148.72,148.58,2.16]
[1633085030065,0.0212176,148.74,148.58,2.16]
[1633085030264,0.0212176,148.76,148.59,29.49368363]
[1633085030463,0.0212176,148.79,148.59,29.49368363]
[1633085030663,0.0212176,148.79,148.6,2.16]
[1633085031064,28.15610477,148.84,148.61,26.28821718]
[1633085031263,0.0212176,148.82,148.62,6.48191468]
[1633085031468,0.0212176,148.82,148.62,29.08440561]
[1633085031663,2.16,148.93,148.67,1.8281509]
[1633085031863,0.02088,148.84,148.68,2.18088]
[1633085032067,2999.52088,148.94,148.7,1.79030472]
[1633085032263,27.38635663,148.93,148.71,2.18088]
[1633085032464,27.38635663,148.93,148.72,0.02088]
[1633085032663,27.38635663,148.93,148.73,2.02]
[1633085032863,27.38635663,148.93,148.74,0.02088]
[1633085033063,27.38635663,148.93,148.75,2.02]
[1633085033264,27.38635663,148.93,148.81,0.02088]
[1633085033462,27.38635663,148.93,148.75,2.02]
[1633085033463,27.38635663,148.93,148.8,2.02]
[1633085033662,27.38635663,148.93,148.81,0.02088]
[1633085034066,27.38635663,148.93,148.8,12.99563974]
[1633085034263,27.38635663,148.93,148.8,2.02]
[1633085034864,2.55313025,148.87,148.74,0.02088]
[1633085035064,21.28550106,148.86,148.74,0.02088]
[1633085035265,21.28550106,148.86,148.54,88.69439535]
[1633085035266,2.43380224,148.82,148.69,0.02088]
[1633085035463,2.50007649,148.79,148.63,2.02]
[1633085035669,23.810808,148.73,148.61,2.02]
[1633085035864,0.02088,148.77,148.61,2.02]
[1633085036267,0.02088,148.78,148.61,2.02]
[1633085036464,0.02088,148.78,148.62,30.13975892]
[1633085036666,0.02088,148.81,148.62,56.69006096]
[1633085037064,0.02088,148.81,148.63,56.69006096]
[1633085037265,2.42492276,148.87,148.56,2.02]
[1633085037266,36.99928383,148.85,148.58,26.42752426]
[1633085037465,37.02016383,148.85,148.59,0.02088]
[1633085037665,26.76860798,148.81,148.59,0.02088]
[1633085037865,26.76860798,148.81,148.56,2.02]
[1633085037866,7.85212,148.8,148.57,0.02088]
[1633085038065,5.02239214,148.79,148.54,0.02088]
[1633085038267,6.25690138,148.77,148.55,2.02]
[1633085038464,6.25690138,148.77,148.56,0.02088]
[1633085038465,28.80713856,148.77,148.56,0.02088]
[1633085038666,77.3812,148.78,148.57,2.02]
[1633085038866,77.3812,148.78,148.58,0.02088]
[1633085039066,0.02088,148.83,148.59,2.02]
[1633085039273,7.873,148.86,148.6,0.02088]
[1633085039467,0.02088,148.85,148.61,2.02]
[1633085039668,30.25422732,148.88,148.62,101.02088]
[1633085039866,0.02088,148.87,148.63,2.04088]
[1633085040069,0.02088,148.87,148.63,32.06423665]
[1633085040265,0.02088,148.87,148.64,30.02335665]
[1633085040466,0.02088,148.87,148.65,2.02]
[1633085040666,0.02088,148.87,148.65,40.5787197]
[1633085040867,30.23334732,148.88,148.66,57.61792772]
[1633085041065,30.23334732,148.88,148.67,2.04088]
[1633085041265,30.23334732,148.88,148.68,0.02088]
[1633085041469,30.23334732,148.88,148.69,75.02]
[1633085041668,30.23334732,148.88,148.7,0.02088]
[1633085041873,28.05204972,148.88,148.76,2.41088552]
[1633085042068,24.76683904,148.88,148.77,2.02]
[1633085042270,2999.5,148.94,148.8,0.02088]
[1633085042469,2999.5,148.94,148.83,0.02088]
[1633085042671,2999.5,148.94,148.84,2.02]
[1633085042869,2999.5,148.94,148.85,0.02088]
[1633085043069,28.36507645,148.93,148.85,2.04088]
[1633085043270,28.36507645,148.93,148.86,0.02088]
[1633085043473,2999.5,148.94,148.86,0.02088]
[1633085043668,2999.5,148.94,148.8,7.53049]
[1633085043868,2999.5,148.94,148.81,2.02]
[1633085044071,2999.5,148.94,148.82,7.58911]
[1633085044269,2999.5,148.94,148.83,2.04088]
[1633085044473,2999.5,148.94,148.84,0.02088]
[1633085044670,24.61580488,148.93,148.85,2.02]
[1633085044867,24.61580488,148.93,148.86,1.51384251]
[1633085045070,24.61580488,148.93,148.87,2.04088]
[1633085045269,24.61580488,148.93,148.86,2.02]
[1633085045770,24.61580488,148.93,148.79,0.02088]
[1633085045971,24.61580488,148.93,148.78,3.57599419]
[1633085045972,24.63668488,148.93,148.78,3.57599419]
[1633085046171,24.63668488,148.93,148.83,1.56387737]
[1633085046393,24.63668488,148.93,148.82,1.57596011]
[1633085046770,24.63668488,148.93,148.77,1.57863215]
[1633085046973,24.63668488,148.93,148.76,1.57934502]
[1633085047172,24.63668488,148.93,148.76,9.11497712]
[1633085047371,0.02088,148.92,148.79,1.55125015]
[1633085047572,0.02088,148.92,148.76,1.54441979]
[1633085047772,25.97851367,148.89,148.72,1.5940632]
[1633085047971,0.02088,148.89,148.72,1.5940632]
[1633085048170,0.02088,148.89,148.76,1.55743232]
[1633085048371,2.59866666,148.93,148.77,0.02088]
[1633085048575,0.02088,148.92,148.75,629.05325293]
[1633085049173,0.02088,148.92,148.71,1.57227258]
[1633085049375,29.54465448,148.89,148.71,1.57227258]
[1633085049575,29.54465448,148.89,148.7,1.57499455]
[1633085049773,29.54465448,148.89,148.71,0.02088]
[1633085049974,29.54465448,148.89,148.73,1.53309616]
[1633085050175,29.56553448,148.89,148.73,1.53309616]
[1633085050374,29.56553448,148.89,148.74,1.52218177]
[1633085050577,29.56553448,148.89,148.74,33.5120773]
[1633085050773,29.56553448,148.89,148.75,1.50221586]
[1633085050977,29.56553448,148.89,148.74,31.98989553]
[1633085051179,29.56553448,148.89,148.75,31.98989553]
[1633085051377,0.02088,148.89,148.75,33.50869702]
[1633085051579,0.02088,148.93,148.75,33.50869702]
[1633085051773,0.02088,148.93,148.76,1.51869533]
[1633085051978,0.02088,148.93,148.79,1.5007483]
[1633085052178,0.02088,148.93,148.8,1.50776231]
[1633085052373,22.26634984,148.93,148.79,1.55945623]
[1633085052576,22.24546984,148.93,148.91,509.33221091]
[1633085052774,160.0,148.91,148.75,1.63250702]
[1633085052976,160.0,148.91,148.75,0.02088]
[1633085053175,160.0,148.91,148.74,1.17]
[1633085053176,2.51395669,148.88,148.74,1.17]
[1633085053378,0.02088,148.87,148.74,1.17]
[1633085053580,2.56484762,148.87,148.74,1.17]
[1633085053778,2.46068469,148.84,148.7,1.67686856]
[1633085053979,2.57225001,148.8,148.69,27.93807]
[1633085054179,0.02088,148.81,148.72,1.67930662]
[1633085054378,0.02088,148.82,148.7,1.69279]
[1633085054580,28.683603,148.82,148.67,1.72045885]
[1633085054780,0.02088,148.81,148.66,3.40243869]
[1633085054979,0.02088,148.81,148.61,5.03495755]
[1633085054980,28.662723,148.8,148.67,3.42448011]
[1633085055379,0.02088,148.81,148.68,101.0]
[1633085055579,0.02088,148.86,148.71,3.31043308]
[1633085055783,0.02088,148.89,148.73,3.31071912]
[1633085055981,0.02088,148.89,148.75,3.2920877]
[1633085056199,0.02088,148.9,148.74,63.35142906]
[1633085056400,0.02088,148.9,148.75,4.67269968]
[1633085056600,0.02088,148.9,148.71,3.30421245]
[1633085056800,0.02088,148.9,148.7,4.63229851]
[1633085056801,2.44194786,148.9,148.7,4.63229851]
[1633085057000,2.50398108,148.84,148.65,3.36611724]
[1633085057403,0.02088,148.83,148.67,23.77630857]
[1633085057603,2.42106786,148.9,148.68,0.02088]
[1633085057802,160.02088,148.91,148.68,0.02088]
[1633085057803,160.0,148.91,148.77,0.02088]
[1633085058002,160.0,148.91,148.77,2.04088]
[1633085058203,141.67,148.91,148.79,0.02088]
[1633085058402,2997.05,148.94,148.79,9.46294982]
[1633085058605,2997.05,148.94,148.83,2.99108247]
[1633085058802,2997.05,148.94,148.84,27.11963541]
[1633085059004,2997.05,148.94,148.86,2.43545523]
[1633085059209,2928.38060001,148.94,148.87,6.21024046]
[1633085059405,2613.89850001,148.94,148.88,7.60693]
[1633085059605,2613.89850001,148.94,148.89,2.04088]
[1633085060206,2613.89850001,148.94,148.89,0.02088]
[1633085060407,2613.89850001,148.94,148.82,3.00178885]
[1633085060605,2613.89850001,148.94,148.81,0.02088]
[1633085060803,2613.89850001,148.94,148.78,0.02088]
[1633085061205,2613.89850001,148.94,148.77,4.43806578]
[1633085061206,0.02088,148.93,148.8,3.07425537]
[1633085061405,0.02088,148.93,148.82,3.0268824]
[1633085061609,0.02088,148.93,148.82,7.317334]
[1633085061806,2613.89850001,148.94,148.82,7.317334]
[1633085062006,2613.89850001,148.94,148.81,29.46934464]
[1633085062206,2613.89850001,148.94,148.82,33.79171665]
[1633085062421,2613.89850001,148.94,148.83,4.36193551]
[1633085062610,2613.89850001,148.94,148.83,4.38281551]
[1633085062808,2613.89850001,148.94,148.82,44.13661484]
[1633085063209,2613.89850001,148.94,148.83,4.39283202]
[1633085063408,25.85325,149.0,148.84,0.02088]
[1633085063609,25.85325,149.0,148.82,18.81527994]
[1633085063807,25.85325,149.0,148.84,16.79527994]
[1633085064007,25.85325,149.0,148.85,1.93953963]
[1633085064410,7.85212,148.99,148.85,1.93953963]
[1633085065007,25.85325,149.0,148.85,1.93953963]
[1633085065412,25.85325,149.0,148.86,29.7639072]
[1633085065609,25.35325,149.0,148.82,2.04088]
[1633085065809,25.35325,149.0,148.86,68.0]
[1633085066609,25.35325,149.0,148.87,28.62115551]
[1633085066809,25.35325,149.0,148.87,30.64115551]
[1633085067009,25.35325,149.0,148.93,56.0]
[1633085067208,25.35325,149.0,148.94,27.28664358]
[1633085067810,25.35325,149.0,148.93,56.0]
[1633085068412,19.169796,149.0,148.93,56.0]
[1633085068808,12.16512062,149.0,148.93,56.0]
[1633085069611,0.09005594,149.03,148.94,65.0]
[1633085069809,5.594e-05,149.03,148.95,24.83587232]
[1633085070209,5.594e-05,149.03,148.95,60.60560171]
[1633085070415,5.594e-05,149.03,149.02,51.0]
[1633085071416,5.594e-05,149.03,148.95,0.02088]
[1633085071609,5.594e-05,149.03,148.86,83.49414053]
[1633085071809,5.594e-05,149.03,148.88,2.86862055]
[1633085072010,5.594e-05,149.03,148.89,2.89321963]
[1633085072209,5.594e-05,149.03,148.87,16.81615994]
[1633085072409,5.594e-05,149.03,148.82,32.08432]
[1633085072612,7.87305594,149.03,148.82,29.03364941]
[1633085072810,0.02088,149.02,148.84,3.0585863]
[1633085073012,5.594e-05,149.03,148.85,2.02]
[1633085073611,0.02088,148.99,148.85,2.02]
[1633085074012,0.02088,148.99,148.85,29.03364941]
[1633085074211,0.02093594,149.03,148.85,29.03364941]
[1633085074613,2.59390345,148.98,148.85,2.02]
[1633085074814,2.59390345,148.98,148.81,0.02088]
[1633085074815,7.85212,148.97,148.8,27.01364941]
[1633085075018,7.85212,148.97,148.76,3.22751538]
[1633085075214,0.02088,148.95,148.73,8.89516676]
[1633085075414,0.02088,148.92,148.81,3.00972881]
[1633085075615,36.59358718,148.97,148.76,3.07313812]
[1633085075616,0.02088,148.95,148.76,3.07313812]
[1633085075813,2.41609445,148.94,148.75,3.094256]
[1633085076012,2.41609445,148.94,148.67,37.86836904]
[1633085076013,7.873,148.93,148.73,9.6105442]
[1633085076212,0.02088,148.92,148.74,4.45926706]
[1633085076414,0.02088,148.92,148.75,30.72665323]
[1633085076617,0.02088,148.92,148.76,24.92587516]
[1633085077014,0.02088,148.92,148.77,30.72665323]
[1633085077414,7.85212,148.93,148.79,27.18577773]
[1633085077813,7.85212,148.93,148.8,30.72665323]
[1633085078217,7.85212,148.93,148.79,27.18577773]
[1633085078614,0.02088,148.92,148.79,57.91243096]
[1633085078815,7.85212,148.93,148.79,57.91243096]
[1633085079616,0.02088,148.92,148.79,57.91243096]
[1633085079815,0.02088,148.95,148.79,88.97761856]
[1633085080014,0.02088,148.99,148.8,4.48417822]
[1633085080214,0.02088,149.02,148.79,42.51095362]
[1633085080418,0.02088,148.99,148.79,42.51095362]
[1633085080818,0.02088,148.99,148.8,29.01827903]
[1633085081016,0.02088,148.99,148.81,4.59985368]
[1633085081215,0.02088,148.99,148.82,28.36721621]
[1633085081415,0.02088,148.99,148.84,3.23210473]
[1633085081817,0.02093594,149.03,148.85,21.8458245]
[1633085082419,7.87305594,149.03,148.85,21.8458245]
[1633085082617,0.02088,148.94,148.77,3.23722173]
[1633085082819,2.32694151,148.96,148.74,3.30704087]
[1633085083018,0.02088,148.95,148.75,101.0]
[1633085083222,0.02088,148.92,148.75,101.0]
[1633085083423,7.85212,148.96,148.76,4.55636884]
[1633085083618,7.85212,148.96,148.76,27.42939014]
[1633085083619,0.02088,148.95,148.76,27.42939014]
[1633085083820,7.85212,148.95,148.77,0.02088]
[1633085084019,0.02088,148.94,148.76,27.42939014]
[1633085084620,7.85212,148.95,148.76,55.96679996]
[1633085084820,0.02088,148.94,148.76,27.42939014]
[1633085085019,0.02088,148.94,148.75,123.55853411]
[1633085085220,0.02088,148.92,148.75,123.55853411]
[1633085085422,0.02088,148.92,148.75,150.98792425]
[1633085085820,2.45076924,148.88,148.75,150.98792425]
[1633085086025,0.02088,148.88,148.75,123.55853411]
[1633085086219,0.02088,148.91,148.75,123.55853411]
[1633085086625,7.873,148.91,148.75,123.55853411]
[1633085086821,0.02088,148.9,148.75,123.55853411]
[1633085087421,0.02088,148.9,148.69,30.47882614]
[1633085087622,0.02088,148.9,148.69,27.42939014]
[1633085087820,0.02088,148.9,148.67,3.08296397]
[1633085088020,0.02088,148.9,148.66,3.15884115]
[1633085088420,0.02088,148.9,148.67,28.76593838]
[1633085088625,0.02088,148.89,148.67,28.76593838]
[1633085089422,0.02088,148.89,148.67,56.19532852]
[1633085090425,0.02088,148.89,148.68,4.43076528]
[1633085090625,2.55336975,148.9,148.69,0.02088]
[1633085090823,2.47020529,148.86,148.69,27.45027014]
[1633085091022,7.85212,148.89,148.7,29.08867884]
[1633085091226,0.02088,148.88,148.7,56.49718898]
[1633085091623,2.42315014,148.86,148.67,3.25784007]
[1633085091830,2.45412313,148.81,148.66,7.03357155]
[1633085092023,2.45412313,148.81,148.66,7.01269155]
[1633085092226,7.85212,148.8,148.66,7.01269155]
[1633085092624,7.85212,148.8,148.67,26.23480853]
[1633085093226,7.85212,148.8,148.67,54.31325978]
[1633085093426,7.85212,148.8,148.68,0.02088]
[1633085093629,7.85212,148.8,148.67,26.23480853]
[1633085094025,7.85212,148.8,148.76,45.0]
[1633085095228,7.85212,148.8,148.77,27.2924817]
[1633085095827,7.85212,148.8,148.76,45.0]
[1633085096231,0.02088,148.9,148.76,45.0]
[1633085096430,7.873,148.9,148.76,45.0]
[1633085096630,2.15,148.89,148.76,45.0]
[1633085096828,10.00212,148.89,148.77,22.14494546]
[1633085097228,7.85212,148.88,148.76,45.0]
[1633085097431,2.17088,148.87,148.76,45.0]
[1633085097630,10.023,148.87,148.76,45.0]
[1633085097830,10.023,148.87,148.67,7.01180979]
[1633085098031,7.85212,148.86,148.67,7.01180979]
[1633085098234,2.15,148.85,148.68,26.08617447]
[1633085098432,7.85212,148.84,148.68,26.08617447]
[1633085098633,33.418969,148.78,148.65,0.02088]
[1633085098833,7.85212,148.77,148.63,0.02088]
[1633085099035,33.418969,148.76,148.63,0.02088]
[1633085099232,33.418969,148.75,148.62,0.02088]
[1633085099433,33.418969,148.74,148.62,0.02088]
[1633085099635,33.418969,148.73,148.62,31.86995904]
[1633085099831,33.418969,148.72,148.63,0.02088]
[1633085100032,33.418969,148.71,148.63,0.02088]
[1633085100233,33.418969,148.7,148.66,0.02088]
[1633085100441,33.418969,148.69,148.66,0.02088]
[1633085100636,2.43746417,148.82,148.63,28.15710903]
[1633085100838,33.418969,148.76,148.64,0.02088]
[1633085101033,33.418969,148.75,148.64,32.39309046]
[1633085101235,72.9403,148.86,148.66,3.28034795]
[1633085101435,32.50820332,148.75,148.66,0.02088]
[1633085101637,35.919264,148.74,148.66,0.02088]
[1633085101833,28.067144,148.73,148.6,0.02088]
[1633085102032,7.85212,148.74,148.6,0.02088]
[1633085102033,28.067144,148.72,148.67,7.01733398]
[1633085102233,28.067144,148.71,148.67,7.01733398]
[1633085102436,28.067144,148.7,148.65,26.28244943]
[1633085102636,7.85212,148.74,148.66,86.0]
[1633085102834,0.02088,148.81,148.66,86.0]
[1633085103036,0.02088,148.85,148.66,112.34878423]
[1633085103233,0.02088,148.85,148.66,86.0]
[1633085103435,72.96118,148.86,148.66,86.0]
[1633085103835,72.96118,148.86,148.66,127.14646763]
[1633085104033,72.96118,148.86,148.67,2.15]
[1633085104239,72.9403,148.86,148.68,29.12887111]
[1633085104433,83.34673981,148.86,148.69,0.02088]
[1633085104834,85.49673981,148.86,148.69,0.02088]
[1633085105034,85.49673981,148.86,148.68,29.12887111]
[1633085105235,82.94242,148.86,148.68,29.12887111]
[1633085105437,51.462,148.85,148.68,29.12887111]
[1633085105636,2.58895419,148.78,148.62,3.53634925]
[1633085105835,2.58895419,148.78,148.54,87.9368015]
[1633085105836,9.62911192,148.62,148.54,83.07716272]
[1633085106233,0.04176,148.61,148.54,83.07716272]
[1633085106436,0.04176,148.61,148.45,2.15]
[1633085106633,9.62911192,148.62,148.54,24.27791041]
[1633085106841,9.62911192,148.62,148.45,2.15]
[1633085107035,0.00911192,148.62,148.45,2.15]
[1633085107236,0.00911192,148.62,148.46,26.08310535]
[1633085107433,0.00911192,148.62,148.47,3.92956598]
[1633085107636,0.04176,148.65,148.62,150.99088808]
[1633085107839,2.74161364,148.9,148.55,2.15]
[1633085107840,0.04176,148.73,148.55,2.15]
[1633085108241,0.04176,148.74,148.55,2.15]
[1633085108445,0.04176,148.74,148.56,22.95257076]
[1633085108639,2.19176,148.76,148.56,22.95257076]
[1633085108838,0.04176,148.75,148.57,29.02133015]
[1633085109037,0.04176,148.73,148.57,29.02133015]
[1633085109235,0.04176,148.7,148.57,29.02133015]
[1633085109439,0.04176,148.7,148.51,5.77981877]
[1633085109637,2.59365905,148.7,148.51,5.77981877]
[1633085109837,0.04176,148.69,148.51,5.77981877]
[1633085110238,0.04176,148.68,148.48,101.0]
[1633085110439,2.19176,148.68,148.48,101.0]
[1633085110636,0.04176,148.67,148.48,101.0]
[1633085110842,2.54269527,148.65,148.48,101.0]
[1633085111237,2.4791626,148.59,148.48,101.0]
[1633085111439,2.48438224,148.61,148.48,101.0]
[1633085111638,2.40882787,148.56,148.38,118.65]
[1633085111840,2.40882787,148.56,148.39,26.06643647]
[1633085112040,2.15,148.61,148.39,35.51147376]
[1633085112237,2.15,148.61,148.39,26.06643647]
[1633085112437,0.04176,148.6,148.4,33.48633675]
[1633085112739,2.19176,148.6,148.41,54.51495744]
[1633085112943,0.04176,148.59,148.42,1.84756789]
[1633085113138,0.04176,148.63,148.42,86.98422374]
[1633085113341,2.15,148.62,148.43,25.85476984]
[1633085113539,0.04176,148.61,148.43,25.85476984]
[1633085113738,2.15,148.6,148.42,23.36206087]
[1633085113939,4.7391114,148.6,148.42,23.36206087]
[1633085114137,4.7391114,148.6,148.4,234.8]
[1633085114138,2.5228944,148.54,148.4,234.8]
[1633085114338,2.19176,148.53,148.4,234.8]
[1633085114540,0.04176,148.52,148.4,234.8]
[1633085114741,2.15,148.51,148.24,7.76936877]
[1633085114938,2.46954111,148.44,148.25,118.54419514]
[1633085115138,2.46954111,148.44,148.26,29.69431899]
[1633085115337,0.04176,148.44,148.26,84.37538754]
[1633085115540,0.04176,148.45,148.26,84.37538754]
[1633085115741,2.15,148.47,148.27,24.00357249]
[1633085115937,2.19176,148.47,148.27,24.00357249]
[1633085116339,2.19176,148.47,148.27,53.80264898]
[1633085116537,78.8532,148.66,148.28,7.25963754]
[1633085116538,2.15,148.55,148.28,7.25963754]
[1633085116743,2.15,148.54,148.32,0.02088]
[1633085116938,4.71686148,148.53,148.32,0.02088]
[1633085117138,2.15,148.52,148.32,0.02088]
[1633085117538,0.02088,148.51,148.27,83.07716272]
[1633085117741,2.41423098,148.47,148.27,83.07716272]
[1633085117940,2.15,148.46,148.28,0.02088]
[1633085118340,2.58336836,148.42,148.28,0.02088]
[1633085118541,2.15,148.41,148.14,75.743]
[1633085118743,2.46306146,148.35,148.18,28.12574602]
[1633085118939,2.15,148.36,148.19,0.02088]
[1633085119140,2.15,148.35,148.19,0.02088]
[1633085120144,2.15,148.35,148.18,28.12574602]
[1633085120344,2.15,148.35,148.19,0.02088]
[1633085121345,2.51414402,148.33,148.18,28.12574602]
[1633085121543,4.66414402,148.33,148.18,28.12574602]
[1633085121749,2.41934215,148.28,148.14,75.76388]
[1633085122144,2.53805614,148.22,148.11,0.02088]
[1633085122349,2.53805614,148.22,148.1,0.02088]
[1633085122550,2.15,148.27,148.1,0.02088]
[1633085122745,2.15,148.27,148.1,25.97655095]
[1633085122944,2.15,148.27,148.11,0.02088]
[1633085123948,2.15,148.27,148.13,26.15624632]
[1633085126049,2.15,148.27,148.09,64.93474632]
[1633085127048,2.15,148.27,148.1,29.14310174]
[1633085129049,0.02088,148.26,148.1,29.14310174]
[1633085129247,2.15,148.25,148.1,29.14310174]
[1633085129848,2.48941382,148.23,148.09,64.93474632]
[1633085130049,0.02088,148.22,148.05,118.9257]
[1633085130250,2.46639458,148.15,148.1,0.2026]
[1633085130451,4.63941382,148.23,148.1,0.2026]
[1633085130452,2.47594533,148.18,148.1,0.2026]
[1633085130849,2.15,148.18,148.1,0.2026]
[1633085131051,2.43476424,148.17,148.1,0.2026]
[1633085131452,2.44782098,148.11,147.97,25.88455629]
[1633085131652,2.15,148.16,147.98,0.02088]
[1633085131853,2.15,148.16,147.98,24.76705068]
[1633085132053,2.15,148.16,147.99,0.02088]
[1633085132252,54.14986976,147.94,147.87,138.07716272]
[1633085132454,2.49833623,147.92,147.91,0.02088]
[1633085132650,2.49833623,147.92,147.8,28.099812]
[1633085132651,4.64833623,147.92,147.8,28.099812]
[1633085132851,29.004434,147.91,147.8,27.599812]
[1633085133249,53.76,148.04,147.82,90.0]
[1633085133452,0.02088,148.03,147.82,90.0]
[1633085133650,2.15,148.02,147.82,90.0]
[1633085134049,0.02088,148.01,147.82,90.0]
[1633085134251,2.15,148.0,147.82,116.18031338]
[1633085134450,2.15,147.99,147.82,115.18031338]
[1633085134652,2.15,147.98,147.82,89.0]
[1633085135049,2.15,147.98,147.81,29.12270048]
[1633085135251,2.41797712,147.93,147.81,28.12270048]
[1633085135451,2.15,147.92,147.81,28.12270048]
[1633085135656,2.15,147.92,147.8,27.599812]
[1633085135851,2.48331118,147.85,147.8,27.599812]
[1633085136052,2.17088,147.92,147.8,16.901012]
[1633085136053,2.15,147.84,147.8,16.901012]
[1633085136254,2.15,147.83,147.8,16.901012]
[1633085136453,2.15,147.82,147.8,16.901012]
[1633085137653,2.15,147.82,147.66,0.02088]
[1633085137953,2.4404187,147.75,147.59,0.02088]
[1633085138154,2.4404187,147.75,147.48,83.07716272]
[1633085138155,2.15,147.74,147.53,0.02088]
[1633085138354,2.15,147.74,147.43,116.5]
[1633085138355,2.53559296,147.71,147.51,0.02088]
[1633085138554,2.15,147.7,147.51,0.02088]
[1633085138952,2.15,147.7,147.51,7.28051754]
[1633085139151,2.15,147.7,147.51,7.25963754]
[1633085139352,2.15,147.7,147.51,7.28051754]
[1633085140154,2.15,147.7,147.51,0.02088]
[1633085140355,2.17088,147.7,147.5,24.12576582]
[1633085141152,2.15,147.7,147.5,24.12576582]
[1633085141359,2.15,147.7,147.51,0.02088]
[1633085141753,2.15,147.74,147.52,101.0]
[1633085141953,2.15,147.74,147.53,28.57214878]
[1633085142153,2.15,147.74,147.54,0.02088]
[1633085142953,2.15,147.74,147.55,0.02088]
[1633085143356,2.15,147.74,147.53,28.57214878]
[1633085143552,2.15,147.74,147.54,0.02088]
[1633085143956,2.43022671,147.67,147.53,28.55126878]
[1633085144154,2.43022671,147.67,147.54,7.25963754]
[1633085144356,2.43022671,147.67,147.53,28.55126878]
[1633085144357,2.15,147.67,147.53,14.60743701]
[1633085144756,2.15,147.67,147.58,63.0]
[1633085144953,2.15,147.67,147.58,86.73544932]
[1633085145554,2.15,147.67,147.59,55.0]
[1633085145759,0.02088,147.66,147.59,55.0]
[1633085145957,2.17088,147.66,147.59,55.0]
[1633085146555,2.15,147.66,147.59,55.0]
[1633085147157,2.41931381,147.63,147.59,55.0]
[1633085147360,2.41931381,147.63,147.55,472.1502331]
[1633085147361,2.41292461,147.6,147.5,79.0]
[1633085147558,2.55998536,147.55,147.5,79.0]
[1633085147759,2.41931381,147.63,147.47,0.07]
[1633085147760,2.59468347,147.52,147.47,0.07]
[1633085148158,0.02088,147.57,147.47,0.07]
[1633085148362,2.15,147.56,147.48,75.0]
[1633085148763,2.54726484,147.58,147.48,75.0]